[Event "NJSK 2023 Meisjes B"]
[Site "Almelo, Netherlands"]
[Date "2023.04.30"]
[Round "1.6"]
[White "Damen, Josephine"]
[Black "Oostinga, Elisa"]
[Result "1-0"]
[TimeControl "90min/40moves + 30min + 30sec/move"]
[WhiteElo "1628"]
[BlackElo "1034"]

1. e4 {[%clk 01:30:57]} {[%emt 00:00:02]} c6 {[%clk 01:30:24]} {[%emt
00:00:36]} 2. d4 {[%clk 01:31:22]} {[%emt 00:00:05]} d5 {[%clk 01:30:41]}
{[%emt 00:00:14]} 3. exd5 {[%clk 01:31:45]} {[%emt 00:00:06]} cxd5 {[%clk
01:31:02]} {[%emt 00:00:10]} 4. c4 {[%clk 01:32:09]} {[%emt 00:00:05]} Nf6
{[%clk 01:31:11]} {[%emt 00:00:21]} 5. Nc3 {[%clk 01:32:24]} {[%emt 00:00:16]}
Nc6 {[%clk 01:31:02]} {[%emt 00:00:39]} 6. Nf3 {[%clk 01:31:46]} {[%emt
00:01:08]} Bg4 {[%clk 01:28:16]} {[%emt 00:03:16]} 7. Be3 {[%clk 01:27:51]}
{[%emt 00:04:25]} e6 {[%clk 01:25:40]} {[%emt 00:03:06]} 8. c5 {[%clk
01:25:58]} {[%emt 00:02:23]} Be7 {[%clk 01:24:25]} {[%emt 00:01:45]} 9. h3
{[%clk 01:22:18]} {[%emt 00:04:12]} Bh5 {[%clk 01:19:26]} {[%emt 00:05:28]} 10.
g4 {[%clk 01:15:51]} {[%emt 00:06:58]} Bg6 {[%clk 01:19:39]} {[%emt 00:00:16]}
11. Bb5 {[%clk 01:10:33]} {[%emt 00:05:48]} Qc7 {[%clk 01:15:05]} {[%emt
00:05:05]} 12. Ne5 {[%clk 01:06:19]} {[%emt 00:04:44]} a6 {[%clk 01:14:19]}
{[%emt 00:01:15]} 13. Bxc6+ {[%clk 01:04:47]} {[%emt 00:02:02]} bxc6 {[%clk
01:14:37]} {[%emt 00:00:13]} 14. Qa4 {[%clk 01:04:33]} {[%emt 00:00:44]} Rc8
{[%clk 01:02:44]} {[%emt 00:12:22]} 15. Qxa6 {[%clk 01:00:54]} {[%emt
00:04:11]} O-O {[%clk 00:52:39]} {[%emt 00:10:33]} 16. Bf4 {[%clk 00:55:52]}
{[%emt 00:05:33]} Ra8 {[%clk 00:44:47]} {[%emt 00:08:23]} 17. Qxc6 {[%clk
00:54:17]} {[%emt 00:02:05]} Qa5 {[%clk 00:42:21]} {[%emt 00:02:55]} 18. Qb5
{[%clk 00:52:21]} {[%emt 00:02:26]} Qxb5 {[%clk 00:41:42]} {[%emt 00:01:10]} 19.
Nxb5 {[%clk 00:52:23]} {[%emt 00:00:28]} Ra4 {[%clk 00:41:27]} {[%emt
00:00:44]} 20. Nc6 {[%clk 00:39:04]} {[%emt 00:13:50]} Bd8 {[%clk 00:38:25]}
{[%emt 00:03:31]} 21. Nc3 {[%clk 00:37:24]} {[%emt 00:02:10]} Ra6 {[%clk
00:37:08]} {[%emt 00:01:47]} 22. Ne5 {[%clk 00:35:34]} {[%emt 00:02:20]} Ba5
{[%clk 00:36:35]} {[%emt 00:01:03]} 23. O-O {[%clk 00:34:26]} {[%emt 00:01:37]}
Bxc3 {[%clk 00:30:02]} {[%emt 00:07:03]} 24. bxc3 {[%clk 00:34:51]} {[%emt
00:00:05]} Ne4 {[%clk 00:30:21]} {[%emt 00:00:11]} 25. Rfc1 {[%clk 00:32:35]}
{[%emt 00:02:43]} Ra3 {[%clk 00:29:35]} {[%emt 00:01:19]} 26. c4 {[%clk
00:30:57]} {[%emt 00:02:09]} Rfa8 {[%clk 00:22:16]} {[%emt 00:07:48]} 27. cxd5
{[%clk 00:26:20]} {[%emt 00:05:08]} exd5 {[%clk 00:16:55]} {[%emt 00:05:50]} 28.
Nxg6 {[%clk 00:20:44]} {[%emt 00:06:05]} hxg6 {[%clk 00:17:03]} {[%emt
00:00:22]} 29. c6 {[%clk 00:16:52]} {[%emt 00:04:23]} Rc8 {[%clk 00:15:39]}
{[%emt 00:01:54]} 30. c7 {[%clk 00:15:57]} {[%emt 00:01:25]} g5 {[%clk
00:14:38]} {[%emt 00:01:31]} 31. Bh2 {[%clk 00:10:04]} {[%emt 00:06:22]} Nd2
{[%clk 00:13:12]} {[%emt 00:01:56]} 32. Kg2 {[%clk 00:09:15]} {[%emt 00:01:20]}
Nc4 {[%clk 00:11:03]} {[%emt 00:02:39]} 33. Rab1 {[%clk 00:06:37]} {[%emt
00:03:08]} Rxa2 {[%clk 00:08:18]} {[%emt 00:03:14]} 34. Rb8 {[%clk 00:06:11]}
{[%emt 00:00:56]} Ra8 {[%clk 00:08:37]} {[%emt 00:00:11]} 35. Ra1 {[%clk
00:06:01]} {[%emt 00:00:40]} Nb6 {[%clk 00:05:04]} {[%emt 00:04:03]} 36. Raxa8
{[%clk 00:06:20]} {[%emt 00:00:10]} 1-0

[Event "NJSK 2023 Meisjes B"]
[Site "Almelo, Netherlands"]
[Date "2023.04.30"]
[Round "1.7"]
[White "De Bruijne, Marlies"]
[Black "Zahirna, Iryna"]
[Result "0-1"]
[TimeControl "90min/40moves + 30min + 30sec/move"]
[WhiteElo "945"]
[BlackElo "1594"]

1. d4 {[%clk 01:30:50]} d5 {[%clk 01:30:53]} {[%emt 00:00:16]} 2. c4 {[%clk
01:31:09]} {[%emt 00:00:11]} Nc6 {[%clk 01:30:40]} {[%emt 00:00:43]} 3. Nc3
{[%clk 01:30:11]} {[%emt 00:01:28]} Nf6 {[%clk 01:27:47]} {[%emt 00:03:22]} 4.
Nf3 {[%clk 01:28:26]} {[%emt 00:02:15]} e6 {[%clk 01:21:55]} {[%emt 00:06:23]}
5. a3 {[%clk 01:21:06]} {[%emt 00:07:50]} h6 {[%clk 01:18:13]} {[%emt
00:04:11]} 6. e3 {[%clk 01:16:03]} {[%emt 00:05:32]} dxc4 {[%clk 01:13:52]}
{[%emt 00:04:52]} 7. Bxc4 {[%clk 01:15:30]} {[%emt 00:01:03]} Bd6 {[%clk
01:11:52]} {[%emt 00:02:30]} 8. e4 {[%clk 01:08:11]} {[%emt 00:07:49]} e5
{[%clk 01:05:04]} {[%emt 00:07:19]} 9. dxe5 {[%clk 00:54:24]} {[%emt 00:14:16]}
Nxe5 {[%clk 01:02:37]} {[%emt 00:02:57]} 10. Nxe5 {[%clk 00:52:33]} {[%emt
00:02:20]} Bxe5 {[%clk 01:02:53]} {[%emt 00:00:14]} 11. Qxd8+ {[%clk 00:51:33]}
{[%emt 00:01:30]} Kxd8 {[%clk 01:03:21]} {[%emt 00:00:02]} 12. Bd3 {[%clk
00:43:50]} {[%emt 00:08:13]} Re8 {[%clk 01:00:39]} {[%emt 00:03:13]} 13. f3
{[%clk 00:39:29]} {[%emt 00:04:50]} Ke7 {[%clk 00:51:53]} {[%emt 00:09:17]} 14.
O-O {[%clk 00:37:14]} {[%emt 00:02:45]} Bd4+ {[%clk 00:47:56]} {[%emt
00:04:26]} 15. Kh1 {[%clk 00:37:22]} {[%emt 00:00:22]} Be6 {[%clk 00:44:22]}
{[%emt 00:04:05]} 16. Nb5 {[%clk 00:33:52]} {[%emt 00:03:59]} Bb6 {[%clk
00:40:06]} {[%emt 00:04:46]} 17. Bf4 {[%clk 00:31:17]} {[%emt 00:03:05]} Red8
{[%clk 00:31:48]} {[%emt 00:08:48]} 18. Rad1 {[%clk 00:24:35]} {[%emt
00:07:11]} Bb3 {[%clk 00:30:00]} {[%emt 00:02:18]} 19. Rd2 {[%clk 00:22:37]}
{[%emt 00:02:28]} g5 {[%clk 00:19:42]} {[%emt 00:10:49]} 20. Bxc7 {[%clk
00:15:53]} {[%emt 00:07:14]} Bxc7 {[%clk 00:19:39]} {[%emt 00:00:32]} 21. Nxc7
{[%clk 00:14:42]} {[%emt 00:01:42]} Rac8 {[%clk 00:19:07]} {[%emt 00:01:02]} 22.
Nb5 {[%clk 00:13:02]} {[%emt 00:02:09]} Bc4 {[%clk 00:19:05]} {[%emt 00:00:32]}
23. Rfd1 {[%clk 00:11:33]} {[%emt 00:01:59]} Bxd3 {[%clk 00:18:41]} {[%emt
00:00:54]} 24. Rxd3 {[%clk 00:11:34]} {[%emt 00:00:28]} Rxd3 {[%clk 00:18:57]}
{[%emt 00:00:15]} 25. Rf1 {[%clk 00:09:10]} {[%emt 00:02:54]} a6 {[%clk
00:17:52]} {[%emt 00:01:36]} 26. Nc3 {[%clk 00:08:44]} {[%emt 00:00:55]} Rd2
{[%clk 00:17:08]} {[%emt 00:01:15]} 27. Na4 {[%clk 00:06:52]} {[%emt 00:02:23]}
b5 {[%clk 00:14:37]} {[%emt 00:03:00]} 28. Nb6 {[%clk 00:06:10]} {[%emt
00:01:11]} Rcc2 {[%clk 00:14:39]} {[%emt 00:00:28]} 29. Re1 {[%clk 00:04:58]}
{[%emt 00:01:43]} Rxb2 {[%clk 00:12:45]} {[%emt 00:02:25]} 30. h3 {[%clk
00:03:21]} {[%emt 00:02:06]} Rxg2 {[%clk 00:11:49]} {[%emt 00:01:26]} 31. Nd5+
{[%clk 00:02:18]} {[%emt 00:01:33]} Nxd5 {[%clk 00:12:13]} {[%emt 00:00:06]} 32.
exd5+ {[%clk 00:02:44]} {[%emt 00:00:03]} Kd7 {[%clk 00:11:46]} {[%emt
00:00:57]} 33. Ra1 {[%clk 00:02:26]} {[%emt 00:00:48]} Rgd2 {[%clk 00:11:50]}
{[%emt 00:00:26]} 34. Kg1 {[%clk 00:02:29]} {[%emt 00:00:27]} Rxd5 {[%clk
00:11:44]} {[%emt 00:00:36]} 35. Kf1 {[%clk 00:02:01]} {[%emt 00:00:58]} Rdd2
{[%clk 00:11:53]} {[%emt 00:00:21]} 36. Ke1 {[%clk 00:02:15]} {[%emt 00:00:15]}
Rh2 {[%clk 00:12:09]} {[%emt 00:00:14]} 37. Rd1+ {[%clk 00:02:03]} {[%emt
00:00:43]} Kc6 {[%clk 00:12:18]} {[%emt 00:00:21]} 38. Rc1+ {[%clk 00:02:12]}
{[%emt 00:00:21]} Kb6 {[%clk 00:12:36]} {[%emt 00:01:50]} 39. Ra1 {[%emt
00:00:26]} 0-1

[Event "NJSK 2023 Meisjes B"]
[Site "Almelo, Netherlands"]
[Date "2023.05.01"]
[Round "2.1"]
[White "Verheij, Dana"]
[Black "Tangarife Ramirez, Katja"]
[Result "1-0"]
[TimeControl "90min/40moves + 30min + 30sec/move"]
[WhiteElo "1846"]
[BlackElo "1667"]

1. e4 {[%clk 01:30:57]} {[%emt 00:00:02]} c6 {[%clk 01:30:53]} {[%emt
00:00:08]} 2. d4 {[%clk 01:31:24]} {[%emt 00:00:03]} d5 {[%clk 01:31:19]}
{[%emt 00:00:04]} 3. exd5 {[%clk 01:31:45]} {[%emt 00:00:09]} cxd5 {[%clk
01:31:44]} {[%emt 00:00:06]} 4. Nf3 {[%clk 01:31:59]} {[%emt 00:00:16]} Nc6
{[%clk 01:29:52]} {[%emt 00:02:22]} 5. Ne5 {[%clk 01:31:42]} {[%emt 00:00:47]}
Nf6 {[%clk 01:24:11]} {[%emt 00:06:11]} 6. Bb5 {[%clk 01:29:47]} {[%emt
00:02:25]} Bd7 {[%clk 01:19:09]} {[%emt 00:05:32]} 7. Nxd7 {[%clk 01:27:19]}
{[%emt 00:02:58]} Qxd7 {[%clk 01:18:26]} {[%emt 00:01:13]} 8. c3 {[%clk
01:25:33]} {[%emt 00:02:17]} e6 {[%clk 01:14:57]} {[%emt 00:03:59]} 9. O-O
{[%clk 01:25:06]} {[%emt 00:00:56]} Bd6 {[%clk 01:08:29]} {[%emt 00:06:58]} 10.
Nd2 {[%clk 01:25:26]} {[%emt 00:00:09]} O-O {[%clk 01:07:53]} {[%emt 00:01:06]}
11. Re1 {[%clk 01:24:51]} {[%emt 00:01:06]} a6 {[%clk 01:03:43]} {[%emt
00:04:40]} 12. Bd3 {[%clk 01:23:17]} {[%emt 00:02:04]} e5 {[%clk 00:58:08]}
{[%emt 00:06:04]} 13. dxe5 {[%clk 01:19:50]} {[%emt 00:03:57]} Nxe5 {[%clk
00:57:32]} {[%emt 00:01:06]} 14. Nf1 {[%clk 01:18:18]} {[%emt 00:02:03]} Nxd3
{[%clk 00:45:58]} {[%emt 00:12:04]} 15. Qxd3 {[%clk 01:16:36]} {[%emt
00:02:12]} Rfe8 {[%clk 00:41:11]} {[%emt 00:05:17]} 16. Be3 {[%clk 01:11:48]}
{[%emt 00:05:18]} Re6 {[%clk 00:34:15]} {[%emt 00:07:25]} 17. Bd4 {[%clk
01:06:18]} {[%emt 00:05:59]} Ne4 {[%clk 00:29:30]} {[%emt 00:05:16]} 18. Red1
{[%clk 00:42:46]} {[%emt 00:24:02]} Rd8 {[%clk 00:22:29]} {[%emt 00:07:31]} 19.
a4 {[%clk 00:29:01]} {[%emt 00:14:15]} Bc5 {[%clk 00:21:11]} {[%emt 00:01:49]}
20. Bxc5 {[%clk 00:27:17]} {[%emt 00:02:14]} Nxc5 {[%clk 00:21:34]} {[%emt
00:00:06]} 21. Qc2 {[%clk 00:26:32]} {[%emt 00:01:13]} Qc7 {[%clk 00:18:14]}
{[%emt 00:03:52]} 22. Ne3 {[%clk 00:23:00]} {[%emt 00:04:01]} Qe5 {[%clk
00:16:44]} {[%emt 00:02:01]} 23. Rd4 {[%clk 00:20:46]} {[%emt 00:02:44]} Ne4
{[%clk 00:15:38]} {[%emt 00:01:36]} 24. Re1 {[%clk 00:17:43]} {[%emt 00:03:33]}
Nf6 {[%clk 00:14:38]} {[%emt 00:01:30]} 25. Red1 {[%clk 00:13:46]} {[%emt
00:04:27]} h5 {[%clk 00:11:25]} {[%emt 00:03:43]} 26. h3 {[%clk 00:10:40]}
{[%emt 00:03:36]} Qg5 {[%clk 00:09:52]} {[%emt 00:02:04]} 27. Qf5 {[%clk
00:08:22]} {[%emt 00:02:47]} Qxf5 {[%clk 00:09:06]} {[%emt 00:01:17]} 28. Nxf5
{[%clk 00:08:51]} {[%emt 00:00:01]} Re2 {[%clk 00:08:48]} {[%emt 00:00:48]} 29.
R4d2 {[%clk 00:07:32]} {[%emt 00:01:49]} Rxd2 {[%clk 00:07:02]} {[%emt
00:02:16]} 30. Rxd2 {[%clk 00:08:00]} {[%emt 00:00:02]} g6 {[%clk 00:06:31]}
{[%emt 00:01:01]} 31. Ne3 {[%clk 00:08:20]} {[%emt 00:00:10]} Kf8 {[%clk
00:06:31]} {[%emt 00:00:30]} 32. c4 {[%clk 00:05:07]} {[%emt 00:03:43]} Ke7
{[%clk 00:06:53]} {[%emt 00:00:08]} 33. cxd5 {[%clk 00:03:59]} {[%emt
00:01:38]} Kd6 {[%clk 00:07:09]} {[%emt 00:00:15]} 34. b4 {[%clk 00:02:41]}
{[%emt 00:01:48]} Ke5 {[%clk 00:06:02]} {[%emt 00:01:37]} 35. Nc4+ {[%clk
00:02:29]} {[%emt 00:00:42]} Kf5 {[%clk 00:05:22]} {[%emt 00:01:10]} 36. d6
{[%clk 00:01:39]} {[%emt 00:01:21]} Ne4 {[%clk 00:05:05]} {[%emt 00:00:46]} 37.
Rd5+ {[%clk 00:01:19]} {[%emt 00:00:49]} Kf6 {[%clk 00:05:19]} {[%emt
00:00:17]} 38. Rd4 {[%clk 00:00:43]} {[%emt 00:01:06]} Nc3 {[%clk 00:05:05]}
{[%emt 00:00:44]} 39. Kf1 {[%clk 00:00:43]} {[%emt 00:00:30]} Nxa4 {[%clk
00:05:14]} {[%emt 00:00:21]} 40. Na5 {[%clk 00:00:46]} {[%emt 00:00:28]} Ke5
{[%emt 00:02:02]} 41. Rd2 {[%clk 00:00:33]} b5 {[%clk 00:04:27]} {[%emt
00:00:28]} 42. Nc6+ {[%clk 00:00:56]} {[%emt 00:00:07]} 1-0

[Event "NJSK 2023 Meisjes B"]
[Site "Almelo, Netherlands"]
[Date "2023.05.01"]
[Round "2.2"]
[White "Zahirna, Iryna"]
[Black "Gergin, Isafara"]
[Result "0-1"]
[TimeControl "90min/40moves + 30min + 30sec/move"]
[WhiteElo "1594"]
[BlackElo "1762"]

1. c4 {[%clk 01:30:57]} {[%emt 00:00:02]} Nf6 {[%clk 01:30:53]} {[%emt
00:00:08]} 2. Nf3 {[%clk 01:31:16]} {[%emt 00:00:11]} g6 {[%clk 01:31:11]}
{[%emt 00:00:11]} 3. g3 {[%clk 01:31:29]} {[%emt 00:00:17]} Bg7 {[%clk
01:31:33]} {[%emt 00:00:08]} 4. Bg2 {[%clk 01:31:31]} {[%emt 00:00:28]} O-O
{[%clk 01:31:41]} {[%emt 00:00:22]} 5. e3 {[%clk 01:30:44]} {[%emt 00:01:17]}
d6 {[%clk 01:31:15]} {[%emt 00:00:56]} 6. d4 {[%clk 01:26:49]} {[%emt
00:04:25]} Nbd7 {[%clk 01:29:51]} {[%emt 00:01:54]} 7. Nc3 {[%clk 01:24:45]}
{[%emt 00:02:34]} e5 {[%clk 01:27:01]} {[%emt 00:03:20]} 8. O-O {[%clk
01:19:18]} {[%emt 00:05:58]} Nh5 {[%clk 01:22:51]} {[%emt 00:04:40]} 9. dxe5
{[%clk 01:06:15]} {[%emt 00:13:33]} dxe5 {[%clk 01:19:24]} {[%emt 00:03:57]} 10.
e4 {[%clk 01:00:41]} {[%emt 00:06:04]} c6 {[%clk 00:59:27]} {[%emt 00:20:27]}
11. Be3 {[%clk 00:49:04]} {[%emt 00:12:07]} Qe7 {[%clk 00:55:42]} {[%emt
00:04:14]} 12. Qe2 {[%clk 00:27:34]} {[%emt 00:22:02]} a5 {[%clk 00:47:58]}
{[%emt 00:08:14]} 13. a3 {[%clk 00:22:15]} {[%emt 00:05:49]} a4 {[%clk
00:45:21]} {[%emt 00:03:06]} 14. Qc2 {[%clk 00:20:31]} {[%emt 00:02:14]} b5
{[%clk 00:22:39]} {[%emt 00:23:13]} 15. cxb5 {[%clk 00:19:53]} {[%emt
00:01:08]} cxb5 {[%clk 00:21:27]} {[%emt 00:01:41]} 16. Nxb5 {[%clk 00:14:48]}
{[%emt 00:05:35]} Ba6 {[%clk 00:20:24]} {[%emt 00:01:33]} 17. Qxa4 {[%clk
00:14:31]} {[%emt 00:00:48]} Nc5 {[%clk 00:13:02]} {[%emt 00:07:51]} 18. Qc4
{[%clk 00:14:32]} {[%emt 00:00:29]} Nxe4 {[%clk 00:03:18]} {[%emt 00:10:14]} 19.
Qxe4 {[%clk 00:14:34]} {[%emt 00:00:28]} Bxb5 {[%clk 00:03:44]} {[%emt
00:00:04]} 20. Rfd1 {[%clk 00:14:31]} {[%emt 00:00:33]} Rac8 {[%clk 00:02:51]}
{[%emt 00:01:23]} 21. Rac1 {[%clk 00:13:57]} {[%emt 00:01:05]} Rxc1 {[%clk
00:01:08]} {[%emt 00:02:13]} 22. Rxc1 {[%clk 00:14:12]} {[%emt 00:00:14]} Re8
{[%clk 00:01:19]} {[%emt 00:00:20]} 23. Nd2 {[%clk 00:12:53]} {[%emt 00:01:50]}
Qe6 {[%clk 00:00:58]} {[%emt 00:00:50]} 24. Rc5 {[%clk 00:12:07]} {[%emt
00:01:15]} Bd7 {[%clk 00:00:43]} {[%emt 00:00:45]} 25. Qd5 {[%clk 00:11:39]}
{[%emt 00:00:59]} Qxd5 {[%clk 00:00:47]} {[%emt 00:00:26]} 26. Rxd5 {[%clk
00:12:06]} {[%emt 00:00:03]} Bc6 {[%clk 00:00:45]} {[%emt 00:00:32]} 27. Rc5
{[%clk 00:12:02]} {[%emt 00:00:34]} Bxg2 {[%clk 00:00:45]} {[%emt 00:00:29]} 28.
Kxg2 {[%clk 00:12:30]} {[%emt 00:00:02]} f5 {[%clk 00:00:53]} {[%emt 00:00:22]}
29. Rc2 {[%clk 00:09:53]} {[%emt 00:03:07]} f4 {[%clk 00:00:56]} {[%emt
00:00:27]} 30. gxf4 {[%clk 00:09:36]} {[%emt 00:00:47]} exf4 {[%clk 00:01:17]}
{[%emt 00:00:09]} 31. Ba7 {[%clk 00:09:19]} {[%emt 00:00:47]} Ra8 {[%clk
00:01:06]} {[%emt 00:00:40]} 32. Bc5 {[%clk 00:07:56]} {[%emt 00:01:53]} Nf6
{[%clk 00:00:51]} {[%emt 00:00:46]} 33. Bd4 {[%clk 00:07:33]} {[%emt 00:00:54]}
g5 {[%clk 00:00:52]} {[%emt 00:00:29]} 34. Rc1 {[%clk 00:06:23]} {[%emt
00:01:40]} g4 {[%clk 00:00:48]} {[%emt 00:00:34]} 35. f3 {[%clk 00:06:03]}
{[%emt 00:00:49]} h5 {[%clk 00:00:56]} {[%emt 00:00:22]} 36. h3 {[%clk
00:05:37]} {[%emt 00:00:56]} g3 {[%clk 00:00:56]} {[%emt 00:00:30]} 37. Be5
{[%clk 00:05:02]} {[%emt 00:01:05]} Nd5 {[%clk 00:00:43]} {[%emt 00:00:43]} 38.
Bxg7 {[%clk 00:05:14]} {[%emt 00:00:18]} Ne3+ {[%clk 00:00:46]} {[%emt
00:00:27]} 39. Kg1 {[%clk 00:05:26]} {[%emt 00:00:18]} Kxg7 {[%clk 00:01:13]}
{[%emt 00:00:03]} 40. Nf1 {[%clk 00:05:26]} {[%emt 00:00:29]} Re8 {[%clk
00:00:36]} {[%emt 00:01:08]} 41. Re1 {[%clk 00:04:57]} {[%emt 00:00:59]} Rb8
{[%emt 00:07:43]} 42. Nxe3 {[%clk 00:34:14]} {[%emt 00:00:01]} fxe3 {[%clk
00:24:53]} {[%emt 00:00:12]} 43. b4 {[%clk 00:34:36]} {[%emt 00:00:08]} Re8
{[%clk 00:24:50]} {[%emt 00:00:33]} 44. h4 {[%clk 00:34:44]} {[%emt 00:00:22]}
Kf6 {[%clk 00:22:31]} {[%emt 00:02:49]} 45. Kg2 {[%clk 00:34:36]} {[%emt
00:00:37]} Kf5 {[%clk 00:21:15]} {[%emt 00:01:47]} 46. Kxg3 {[%clk 00:24:55]}
{[%emt 00:10:11]} Rg8+ {[%clk 00:20:39]} {[%emt 00:01:05]} 47. Kh2 {[%clk
00:24:25]} {[%emt 00:00:59]} Kf4 {[%clk 00:20:38]} {[%emt 00:00:32]} 48. Rg1
{[%clk 00:22:38]} {[%emt 00:02:16]} Ra8 {[%clk 00:16:53]} {[%emt 00:04:16]} 49.
Ra1 {[%clk 00:13:44]} {[%emt 00:09:25]} Kxf3 {[%clk 00:15:08]} {[%emt
00:02:14]} 50. Kg1 {[%clk 00:13:18]} {[%emt 00:00:56]} Rg8+ {[%clk 00:12:09]}
{[%emt 00:03:29]} 51. Kh1 {[%clk 00:12:18]} {[%emt 00:01:30]} e2 {[%clk
00:11:08]} {[%emt 00:01:31]} 52. a4 {[%clk 00:09:32]} {[%emt 00:03:16]} Kf2
{[%clk 00:10:29]} {[%emt 00:01:09]} 0-1

[Event "NJSK 2023 Meisjes B"]
[Site "Almelo, Netherlands"]
[Date "2023.05.01"]
[Round "2.3"]
[White "Feng, Elysia"]
[Black "Damen, Josephine"]
[Result "0-1"]
[TimeControl "90min/40moves + 30min + 30sec/move"]
[WhiteElo "1697"]
[BlackElo "1628"]

1. e4 {[%clk 01:30:59]} e5 {[%clk 01:30:55]} {[%emt 00:00:06]} 2. Nf3 {[%clk
01:31:25]} {[%emt 00:00:04]} Nc6 {[%clk 01:31:20]} {[%emt 00:00:05]} 3. Bb5
{[%clk 01:31:48]} {[%emt 00:00:07]} a6 {[%clk 01:31:44]} {[%emt 00:00:06]} 4.
Ba4 {[%clk 01:32:15]} {[%emt 00:00:03]} Nf6 {[%clk 01:31:53]} {[%emt 00:00:19]}
5. O-O {[%clk 01:32:39]} {[%emt 00:00:07]} Be7 {[%clk 01:32:16]} {[%emt
00:00:07]} 6. Re1 {[%clk 01:33:04]} {[%emt 00:00:05]} b5 {[%clk 01:32:37]}
{[%emt 00:00:09]} 7. Bb3 {[%clk 01:33:30]} {[%emt 00:00:04]} O-O {[%clk
01:32:51]} {[%emt 00:00:16]} 8. c3 {[%clk 01:33:57]} {[%emt 00:00:03]} d5
{[%clk 01:33:00]} {[%emt 00:00:21]} 9. exd5 {[%clk 01:34:23]} {[%emt 00:00:04]}
Nxd5 {[%clk 01:33:23]} {[%emt 00:00:06]} 10. Nxe5 {[%clk 01:34:48]} {[%emt
00:00:05]} Nxe5 {[%clk 01:33:40]} {[%emt 00:00:14]} 11. Rxe5 {[%clk 01:35:12]}
{[%emt 00:00:07]} c6 {[%clk 01:33:46]} {[%emt 00:00:24]} 12. d4 {[%clk
01:35:38]} {[%emt 00:00:04]} Bd6 {[%clk 01:34:09]} {[%emt 00:00:06]} 13. Re1
{[%clk 01:36:04]} {[%emt 00:00:04]} Qh4 {[%clk 01:34:22]} {[%emt 00:00:16]} 14.
g3 {[%clk 01:36:29]} {[%emt 00:00:05]} Qh3 {[%clk 01:34:43]} {[%emt 00:00:10]}
15. Be3 {[%clk 01:36:52]} {[%emt 00:00:07]} Bg4 {[%clk 01:34:58]} {[%emt
00:00:14]} 16. Qd3 {[%clk 01:37:10]} {[%emt 00:00:12]} Kh8 {[%clk 01:33:34]}
{[%emt 00:01:54]} 17. Qf1 {[%clk 01:35:51]} {[%emt 00:01:50]} Qh5 {[%clk
01:32:44]} {[%emt 00:01:19]} 18. Nd2 {[%clk 01:35:26]} {[%emt 00:00:55]} f5
{[%clk 01:24:40]} {[%emt 00:08:35]} 19. f4 {[%clk 01:33:18]} {[%emt 00:02:38]}
Rae8 {[%clk 00:55:02]} {[%emt 00:30:08]} 20. Bxd5 {[%clk 01:28:01]} {[%emt
00:05:46]} cxd5 {[%clk 00:55:16]} {[%emt 00:00:16]} 21. a4 {[%clk 01:23:21]}
{[%emt 00:05:11]} bxa4 {[%clk 00:40:00]} {[%emt 00:15:46]} 22. Rxa4 {[%clk
01:14:53]} {[%emt 00:08:57]} g5 {[%clk 00:35:09]} {[%emt 00:05:21]} 23. Raa1
{[%clk 01:05:20]} {[%emt 00:10:04]} gxf4 {[%clk 00:16:10]} {[%emt 00:19:29]} 24.
Bxf4 {[%clk 01:04:32]} {[%emt 00:01:17]} Be2 {[%clk 00:15:37]} {[%emt
00:01:03]} 25. Qf2 {[%clk 01:03:19]} {[%emt 00:01:43]} Bxf4 {[%clk 00:14:53]}
{[%emt 00:01:14]} 26. Qxf4 {[%clk 01:02:56]} {[%emt 00:00:53]} Rg8 {[%clk
00:13:31]} {[%emt 00:01:53]} 27. Qf2 {[%clk 00:57:24]} {[%emt 00:06:01]} Rg4
{[%clk 00:10:46]} {[%emt 00:03:15]} 28. Nf3 {[%clk 00:44:18]} {[%emt 00:13:36]}
Rge4 {[%clk 00:10:09]} {[%emt 00:01:07]} 29. Ne5 {[%clk 00:41:59]} {[%emt
00:02:50]} Rg8 {[%clk 00:05:35]} {[%emt 00:05:04]} 30. Kh1 {[%clk 00:40:16]}
{[%emt 00:02:13]} f4 {[%clk 00:03:25]} {[%emt 00:02:40]} 31. g4 {[%clk
00:40:29]} {[%emt 00:00:16]} Rxg4 {[%clk 00:00:49]} {[%emt 00:03:06]} 32. Nxg4
{[%clk 00:38:44]} {[%emt 00:02:14]} Qxg4 {[%clk 00:01:12]} {[%emt 00:00:06]} 33.
h3 {[%clk 00:39:10]} {[%emt 00:00:05]} Qxh3+ {[%clk 00:01:27]} {[%emt
00:00:15]} 34. Qh2 {[%clk 00:39:29]} {[%emt 00:00:10]} Qe3 {[%clk 00:00:54]}
{[%emt 00:01:03]} 35. Rxe2 {[%clk 00:24:43]} {[%emt 00:15:16]} Qxe2 {[%clk
00:01:16]} {[%emt 00:00:09]} 36. Qh4 {[%clk 00:24:58]} {[%emt 00:00:13]} Qf3+
{[%clk 00:01:15]} {[%emt 00:00:32]} 37. Kg1 {[%clk 00:25:23]} {[%emt 00:00:05]}
Qe3+ {[%clk 00:01:17]} {[%emt 00:00:27]} 38. Kh1 {[%clk 00:25:46]} {[%emt
00:00:07]} Qf3+ {[%clk 00:01:20]} {[%emt 00:00:28]} 39. Kg1 {[%clk 00:26:12]}
{[%emt 00:00:04]} Re8 {[%clk 00:00:42]} {[%emt 00:01:08]} 40. Qf6+ {[%clk
00:26:00]} {[%emt 00:00:42]} Kg8 {[%clk 00:01:06]} {[%emt 00:00:06]} 41. Qxa6
{[%clk 00:23:41]} {[%emt 00:02:50]} Qg3+ {[%clk 00:27:48]} {[%emt 00:03:47]} 42.
Kh1 {[%clk 00:53:51]} {[%emt 00:00:20]} Qh3+ {[%clk 00:28:11]} {[%emt
00:00:06]} 43. Kg1 {[%clk 00:54:18]} {[%emt 00:00:04]} f3 {[%clk 00:28:32]}
{[%emt 00:00:08]} 44. Qf1 {[%clk 00:53:17]} {[%emt 00:01:31]} Qg3+ {[%clk
00:23:00]} {[%emt 00:06:02]} 45. Kh1 {[%clk 00:53:41]} {[%emt 00:00:06]} Re4
{[%clk 00:23:10]} {[%emt 00:00:20]} 46. Ra8+ {[%clk 00:53:20]} {[%emt
00:00:51]} Kg7 {[%clk 00:20:36]} {[%emt 00:03:03]} 47. Ra7+ {[%clk 00:53:37]}
{[%emt 00:00:14]} Kf6 {[%clk 00:20:13]} {[%emt 00:00:53]} 48. Ra6+ {[%clk
00:38:26]} {[%emt 00:15:42]} Kf5 {[%clk 00:20:23]} {[%emt 00:00:19]} 49. Rh6
{[%clk 00:35:26]} {[%emt 00:03:30]} Re1 {[%clk 00:20:40]} {[%emt 00:00:14]} 50.
Rh5+ {[%clk 00:35:50]} {[%emt 00:00:05]} Kg6 {[%clk 00:20:39]} {[%emt
00:00:30]} 51. Re5 {[%clk 00:35:56]} {[%emt 00:00:25]} Qg2# {[%clk 00:20:58]}
{[%emt 00:00:10]} 0-1